{"text_format":"1","workbook":"xlsx","n_sheets":4,"sheets":["Основна таблица","Таблица за индексиране","Указания за основната таблица"," "],"not_rendered":{"charts":0,"images":10,"macros":1,"external_links":0,"defined_names":6,"comments":3,"pivot_tables":0},"unopened":[],"bounds":{"document_bytes":16777216,"sheet_cells":100000,"rows_first":2000,"rows_last":500,"rows_between":2000,"halvings":0,"cell_chars":16384,"cell_head_chars":4096},"cells_cut":0,"cells_raw":0,"read":"whole","date_system":"1900"}

{"sheet":"Основна таблица","index":0,"n_rows":72,"n_cols":122,"rows_kept":72,"cut":false,"hidden":false,"merged":[[70,0,70,5],[71,0,84,5],[44,0,44,4],[63,0,68,5],[62,0,62,5],[1,0,1,5],[3,0,3,5],[4,0,4,5],[6,0,6,2],[7,0,7,2],[6,3,6,5],[7,3,7,5],[5,0,5,2],[5,3,5,5],[25,4,27,4],[6,10,6,11],[8,10,8,11],[9,0,9,2],[8,0,8,2],[8,3,8,5],[9,3,9,5],[25,5,27,5],[12,0,17,0],[12,4,12,5],[13,4,13,5],[14,4,14,5],[15,4,15,5],[16,4,16,5],[17,3,17,4],[0,0,0,5],[10,3,10,5],[10,0,10,2],[46,0,48,0],[46,1,48,1],[46,2,48,2],[46,3,48,3],[46,4,48,4],[45,0,45,1],[23,0,23,5],[24,1,24,2],[24,3,24,4],[25,0,27,0],[25,1,27,1],[25,2,27,2],[25,3,27,3],[1,116,1,121],[2,117,2,118],[2,119,2,120],[3,116,5,116],[3,117,5,117],[3,118,5,118],[3,119,5,119],[3,120,5,120],[3,121,5,121]]}
[]
["Изчисляване на просрочените задължения за всеки човек поотделно*",null,null,null,null,null,null,null,null,null,null,null,null,null,null,null,null,null,null,null,null,null,null,null,null,null,null,null,null,null,null,null,null,null,null,null,null,null,null,null,null,null,null,null,null,null,null,null,null,null,null,null,null,null,null,null,null,null,null,null,null,null,null,null,null,null,null,null,null,null,null,null,null,null,null,null,null,null,null,null,null,null,null,null,null,null,null,null,null,null,null,null,null,null,null,null,null,null,null,null,null,null,null,null,null,null,null,null,null,null,null,null,null,null,null,null,"Таблица на годишната сума"]
["escolher idoma/chosse language",null,"Idioma:","English",null,null,null,null,null,null,null,null,null,null,null,null,null,null,null,null,null,null,null,null,null,null,null,null,null,null,null,null,null,null,null,null,null,null,null,null,null,null,null,null,null,null,null,null,null,null,null,null,null,null,null,null,null,null,null,null,null,null,null,null,null,null,null,null,null,null,null,null,null,null,null,null,null,null,null,null,null,null,null,null,null,null,null,null,null,null,null,null,null,null,null,null,null,null,null,null,null,null,null,null,null,null,null,null,null,null,null,null,null,null,null,null,"Година",null,null,"Валута на таблицата"]
["* Запознайте се с указанията за попълване на формуляра.",null,null,null,null,null,null,null,null,null,null,null,null,null,null,null,null,null,null,null,null,null,null,null,null,null,null,null,null,null,null,null,null,null,null,null,null,null,null,null,null,null,null,null,null,null,null,null,null,null,null,null,null,null,null,null,null,null,null,null,null,null,null,null,null,null,null,null,null,null,null,null,null,null,null,null,null,null,null,null,null,null,null,null,null,null,null,null,null,null,null,null,null,null,null,null,null,null,null,null,null,null,null,null,null,null,null,null,null,null,null,null,null,null,null,null,"Месец","Определена месечна сума","Суми, платени от длъжника","Суми, платени в друга валута","Суми, платени от други източници","Суми на просрочените задължения"]
["Решение / Съдебна спогодба / Автентичен документ"]
["Име на ищеца:"]
["Дата (ДД/ММ/ГГГГ) и регистрационен номер на решението / съдебната спогодба / автентичния документ:",null,null,null,null,null,null,null,null,null,null,null,null,null,null,null,null,null,null,null,null,null,null,null,null,null,null,null,null,null,null,null,null,null,null,null,null,null,null,null,null,null,null,null,null,null,null,null,null,null,null,null,null,null,null,null,null,null,null,null,null,null,null,null,null,null,null,null,null,null,null,null,null,null,null,null,null,null,null,null,null,null,null,null,null,null,null,null,null,null,null,null,null,null,null,null,null,null,null,null,null,null,null,null,null,null,null,null,null,null,null,null,null,null,null,null,"Януари",null,null,null,null,{"$f":"DN7-DO7-DQ7","v":0}]
["Наименование на съда / компетентния орган по произход:",null,null,null,null,null,null,null,null,null,null,null,null,null,null,null,null,null,null,null,null,null,null,null,null,null,null,null,null,null,null,null,null,null,null,null,null,null,null,null,null,null,null,null,null,null,null,null,null,null,null,null,null,null,null,null,null,null,null,null,null,null,null,null,null,null,null,null,null,null,null,null,null,null,null,null,null,null,null,null,null,null,null,null,null,null,null,null,null,null,null,null,null,null,null,null,null,null,null,null,null,null,null,null,null,null,null,null,null,null,null,null,null,null,null,null,"Фебруари",null,null,null,null,0]
["Име на ответника:",null,null,null,null,null,null,null,null,null,null,null,null,null,null,null,null,null,null,null,null,null,null,null,null,null,null,null,null,null,null,null,null,null,null,null,null,null,null,null,null,null,null,null,null,null,null,null,null,null,null,null,null,null,null,null,null,null,null,null,null,null,null,null,null,null,null,null,null,null,null,null,null,null,null,null,null,null,null,null,null,null,null,null,null,null,null,null,null,null,null,null,null,null,null,null,null,null,null,null,null,null,null,null,null,null,null,null,null,null,null,null,null,null,null,null,"Март",null,null,null,null,0]
["Лице, на което се дължи издръжка:",null,null,null,null,null,null,null,null,null,null,null,null,null,null,null,null,null,null,null,null,null,null,null,null,null,null,null,null,null,null,null,null,null,null,null,null,null,null,null,null,null,null,null,null,null,null,null,null,null,null,null,null,null,null,null,null,null,null,null,null,null,null,null,null,null,null,null,null,null,null,null,null,null,null,null,null,null,null,null,null,null,null,null,null,null,null,null,null,null,null,null,null,null,null,null,null,null,null,null,null,null,null,null,null,null,null,null,null,null,null,null,null,null,null,null,"Април",null,null,null,null,0]
["Регистрационен номер на молбата:",null,null,null,null,null,null,null,null,null,null,null,null,null,null,null,null,null,null,null,null,null,null,null,null,null,null,null,null,null,null,null,null,null,null,null,null,null,null,null,null,null,null,null,null,null,null,null,null,null,null,null,null,null,null,null,null,null,null,null,null,null,null,null,null,null,null,null,null,null,null,null,null,null,null,null,null,null,null,null,null,null,null,null,null,null,null,null,null,null,null,null,null,null,null,null,null,null,null,null,null,null,null,null,null,null,null,null,null,null,null,null,null,null,null,null,"Май",null,null,null,null,0]
[null,null,null,null,null,null,null,null,null,null,null,null,null,null,null,null,null,null,null,null,null,null,null,null,null,null,null,null,null,null,null,null,null,null,null,null,null,null,null,null,null,null,null,null,null,null,null,null,null,null,null,null,null,null,null,null,null,null,null,null,null,null,null,null,null,null,null,null,null,null,null,null,null,null,null,null,null,null,null,null,null,null,null,null,null,null,null,null,null,null,null,null,null,null,null,null,null,null,null,null,null,null,null,null,null,null,null,null,null,null,null,null,null,null,null,null,"Юни",null,null,null,null,0]
["Валута, посочена в решението/съдебната спогодба/автентичния документ            ",null,"    Евро (EUR)","  ","Лева (BGN)",null,null,null,null,null,null,null,null,null,null,null,null,null,null,null,null,null,null,null,null,null,null,null,null,null,null,null,null,null,null,null,null,null,null,null,null,null,null,null,null,null,null,null,null,null,null,null,null,null,null,null,null,null,null,null,null,null,null,null,null,null,null,null,null,null,null,null,null,null,null,null,null,null,null,null,null,null,null,null,null,null,null,null,null,null,null,null,null,null,null,null,null,null,null,null,null,null,null,null,null,null,null,null,null,null,null,null,null,null,null,null,"Юли",null,null,null,null,0]
[null,null,"    Чешки крони (CZK)",null,"Хърватски куни (HRK)  ",null,null,null,null,null,null,null,null,null,null,null,null,null,null,null,null,null,null,null,null,null,null,null,null,null,null,null,null,null,null,null,null,null,null,null,null,null,null,null,null,null,null,null,null,null,null,null,null,null,null,null,null,null,null,null,null,null,null,null,null,null,null,null,null,null,null,null,null,null,null,null,null,null,null,null,null,null,null,null,null,null,null,null,null,null,null,null,null,null,null,null,null,null,null,null,null,null,null,null,null,null,null,null,null,null,null,null,null,null,null,null,"Август",null,null,null,null,0]
[null,null,"    Форинти (HUF)",null,"Литаси (LTL)",null,null,null,null,null,null,null,null,null,null,null,null,null,null,null,null,null,null,null,null,null,null,null,null,null,null,null,null,null,null,null,null,null,null,null,null,null,null,null,null,null,null,null,null,null,null,null,null,null,null,null,null,null,null,null,null,null,null,null,null,null,null,null,null,null,null,null,null,null,null,null,null,null,null,null,null,null,null,null,null,null,null,null,null,null,null,null,null,null,null,null,null,null,null,null,null,null,null,null,null,null,null,null,null,null,null,null,null,null,null,null,"Септември",null,null,null,null,0]
[null,null,"    Полски злоти (PLN) ",null,"Румънски леи (RON)",null,null,null,null,null,null,null,null,null,null,null,null,null,null,null,null,null,null,null,null,null,null,null,null,null,null,null,null,null,null,null,null,null,null,null,null,null,null,null,null,null,null,null,null,null,null,null,null,null,null,null,null,null,null,null,null,null,null,null,null,null,null,null,null,null,null,null,null,null,null,null,null,null,null,null,null,null,null,null,null,null,null,null,null,null,null,null,null,null,null,null,null,null,null,null,null,null,null,null,null,null,null,null,null,null,null,null,null,null,null,null,"Октомври",null,null,null,null,0]
[null,null,"    Крони (SEK)",null,"Британски лири (GBP)",null,null,null,null,null,null,null,null,null,null,null,null,null,null,null,null,null,null,null,null,null,null,null,null,null,null,null,null,null,null,null,null,null,null,null,null,null,null,null,null,null,null,null,null,null,null,null,null,null,null,null,null,null,null,null,null,null,null,null,null,null,null,null,null,null,null,null,null,null,null,null,null,null,null,null,null,null,null,null,null,null,null,null,null,null,null,null,null,null,null,null,null,null,null,null,null,null,null,null,null,null,null,null,null,null,null,null,null,null,null,null,"Ноември",null,null,null,null,0]
[null,null,"    Друга валута (моля, уточнете ):",null,null,null,null,null,null,null,null,null,null,null,null,null,null,null,null,null,null,null,null,null,null,null,null,null,null,null,null,null,null,null,null,null,null,null,null,null,null,null,null,null,null,null,null,null,null,null,null,null,null,null,null,null,null,null,null,null,null,null,null,null,null,null,null,null,null,null,null,null,null,null,null,null,null,null,null,null,null,null,null,null,null,null,null,null,null,null,null,null,null,null,null,null,null,null,null,null,null,null,null,null,null,null,null,null,null,null,null,null,null,null,null,null,"Декември",null,null,null,null,0]
[null,null,null,null,null,null,null,null,null,null,null,null,null,null,null,null,null,null,null,null,null,null,null,null,null,null,null,null,null,null,null,null,null,null,null,null,null,null,null,null,null,null,null,null,null,null,null,null,null,null,null,null,null,null,null,null,null,null,null,null,null,null,null,null,null,null,null,null,null,null,null,null,null,null,null,null,null,null,null,null,null,null,null,null,null,null,null,null,null,null,null,null,null,null,null,null,null,null,null,null,null,null,null,null,null,null,null,null,null,null,null,null,null,null,null,null,"ОБЩО",{"$f":"SUM(DN7:DN18)","v":0},{"$f":"SUM(DO7:DO18)","v":0},null,{"$f":"SUM(DQ7:DQ18)","v":0},0]
[]
[]
[]
[]
["Таблица на годишната сума"]
["Година",null,null,"Валута на таблицата"]
["Месец","Определена месечна сума","Суми, платени от длъжника","Суми, платени в друга валута","Суми, платени от други източници","Суми на просрочените задължения"]
[]
[]
["Януари",null,null,null,null,{"$f":"B29-C29-E29","v":0}]
["Фебруари",null,null,null,null,0]
["Март",null,null,null,null,0]
["Април",null,null,null,null,0]
["Май",null,null,null,null,0]
["Юни",null,null,null,null,0]
["Юли",null,null,null,null,0]
["Август",null,null,null,null,0]
["Септември",null,null,null,null,0]
["Октомври",null,null,null,null,0]
["Ноември",null,null,null,null,0]
["Декември",null,null,null,null,0]
["ОБЩО",{"$f":"SUM(B29:B40)","v":0},{"$f":"SUM(C29:C40)","v":0},null,{"$f":"SUM(E29:E40)","v":0},0]
[]
[]
[]
["Обобщителна таблица"]
["Валута на таблицата"]
["Година","Определена годишна издръжка","Суми, платени от длъжника","Суми, платени от други източници","Суми на просрочените задължения"]
[]
[]
[null,null,null,null,{"$f":"B50-C50-D50","v":0}]
[null,null,null,null,0]
[null,null,null,null,0]
[null,null,null,null,0]
[null,null,null,null,0]
[null,null,null,null,0]
[null,null,null,null,0]
[null,null,null,null,0]
[null,null,null,null,0]
[null,null,null,null,0]
["ОБЩО",{"$f":"SUM(B50:B59)","v":0},{"$f":"SUM(C50:C59)","v":0},{"$f":"SUM(D50:D59)","v":0},0]
[]
[]
["Друга важна информация - да се попълни от молещия централен орган"]
[]
[]
[]
[]
[]
[]
[]
["                                  Таблица за индексиране"]
["\n\nСъставено в: ……………………………...…………. на ………………...……...…………... (дд/мм/гггг)\n\nПодпис на ищеца: ……………………………………………………………………………..................…...............\n\nи/или, когато е целесъобразно,\n\nИме и подпис на лицето/органа, оправомощени в молещата държава членка да попълнят формуляра от името на ищеца: ……........…………………….............................................……...................................\n…………………………………………………………...……………..............................................…........................…"]

{"sheet":"Таблица за индексиране","index":1,"n_rows":33,"n_cols":15,"rows_kept":33,"cut":false,"hidden":false,"merged":[[4,6,5,6],[30,1,31,5],[0,0,0,14],[1,0,1,14],[4,9,4,14],[5,0,5,1],[3,6,3,7],[3,2,3,4],[6,0,28,1],[4,3,5,3]]}
["Таблица за индексиране"]
["(за изчисляване на индексираната сума)"]
[]
[null,null,"Инструмент за автоматично изчисляване",null,null,null,"Обобщени ставки за индексиране"]
[null,null,"Година","Индексиране","Сума",null,"Година","Държава членка",null,"Компетентен орган:",{"$f":"VLOOKUP(idioma,trad_v,26,FALSE)","v":{"$error":"#REF!"}},{"$f":"VLOOKUP(idioma,trad_v,26,FALSE)","v":{"$error":"#REF!"}},{"$f":"VLOOKUP(idioma,trad_v,26,FALSE)","v":{"$error":"#REF!"}},{"$f":"VLOOKUP(idioma,trad_v,26,FALSE)","v":{"$error":"#REF!"}},{"$f":"VLOOKUP(idioma,trad_v,26,FALSE)","v":{"$error":"#REF!"}}]
["Определена месечна сума за издръжка* ",null,2000,null,100,null,{"$f":"VLOOKUP(idioma,trad_v,7,FALSE)","v":{"$error":"#REF!"}},"Всичко общо"]
["Актуализиран размер на определената месечна сума за издръжка",null,{"$f":"C6+1","v":2001},{"$f":"VLOOKUP(C7-1,$G$7:$H$29,2)","v":0},{"$f":"E6+(E6*D7)","v":100},null,1992]
[null,null,{"$f":"C7+1","v":2002},{"$f":"VLOOKUP(C8-1,$G$7:$H$29,2)","v":0},100,null,1993]
[null,null,2003,{"$f":"VLOOKUP(C9-1,$G$7:$H$29,2)","v":0},100,null,1994]
[null,null,2004,0,100,null,1995]
[null,null,2005,0,100,null,1996]
[null,null,2006,0,100,null,1997]
[null,null,2007,0,100,null,1998]
[null,null,2008,0,100,null,1999]
[null,null,2009,0,100,null,2000]
[null,null,2010,0,100,null,2001]
[null,null,2011,0,100,null,2002]
[null,null,2012,0,100,null,2003]
[null,null,2013,0,100,null,2004]
[null,null,2014,0,100,null,2005]
[null,null,2015,0,100,null,2006]
[null,null,2016,0,100,null,2007]
[null,null,2017,0,100,null,2008]
[null,null,2018,0,100,null,2009]
[null,null,2019,0,100,null,2010]
[null,null,2020,0,100,null,2011]
[null,null,2021,0,100,null,2012]
[null,null,2022,0,100,null,2013]
[null,null,2023,0,100,null,2014]
[]
[null,"* въведете годината и сумата за издръжка или стойността, определена за предходната година и въведена в таблицата, озаглавена \"таблица на годишната сума\"."]
[]
[null,"Тази таблица за индексиране е само примерна, тъй като държавите членки трябва да разработят своя допълнителна таблица и формули, които отговарят на тяхната система за изчисляване на индексирането."]

{"sheet":"Указания за основната таблица","index":2,"n_rows":79,"n_cols":1,"rows_kept":79,"cut":false,"hidden":false,"merged":[[27,0,27,8],[26,0,26,8],[25,0,25,8],[24,0,24,8],[22,0,22,8],[0,0,0,8],[12,0,12,8],[11,0,11,8],[16,0,16,8],[1,0,1,8],[13,0,13,8],[14,0,14,8],[15,0,15,8],[86,0,86,8],[28,0,28,8],[78,0,78,8],[79,0,79,8],[45,0,45,8],[65,0,65,8],[77,0,77,8],[76,0,76,8],[63,0,63,8],[67,0,67,8],[66,1,66,9],[49,0,49,8],[44,0,44,8],[47,0,47,8],[46,0,46,8]]}
["Указания - Насоки за попълване на основната таблица"]
["Това не е задължителен формуляр. Може да се попълни от ищеца и/или лице/орган, оправомощени в молещата държава членка да попълнят формуляра от името на ищеца. Той може да се попълни в електронен вариант или на хартия, във формат Excel или PDF."]
[]
[]
["1."]
["2."]
["3."]
["4."]
["5."]
["6."]
[]
["1. Въведете името на ищеца, т.е. физическото лице / публичния орган, който иска издръжката от името на физическото лице или от свое собствено име."]
["2. Въведете датата и регистрационния номер на решението, съдебната спогодба или автентичния документ, на които се основава изчисляването на просрочените задължения. Ако изчисляването на просрочените задължения се основава на повече от едно решение, съдебна спогодба, автентичен документ, въведете датите и регистрационните номера на всички решения, съдебни спогодби или автентични инструменти като разширите клетката/като използвате повече редове в клетката."]
["3. Въведете наименованието на съда или друг компетентен орган по произход. Ако участва повече от един съд или компетентен орган (съгласно точка 2), въведете наименованията на всички в съответствие с точка 2, като разширите клетката/като използвате повече редове в клетката."]
["4. Въведете името на ответника (лицето, срещу което е подадена въпросната молба за издръжка)."]
["5. Въведето името на лицето, на което се дължи издръжка. Попълнете отделен формуляр за всяко лице, на което се дължи издръжка."]
["6. Въведете регистрационния номер на молбата (молещ централен орган)."]
[]
["7."]
[]
[]
[]
["7. Посочете валутата, в която е установено и се води задължението за издръжка (т.е. валутата, която е посочена в решението, съдебната спогодба или автентичния документ). Ако към момента на попълване на формуляра валутата, спомената в решението, съдебната спогодба или автентичния документ, е променена в държавата по произход на документа, се препоръчва във всяка таблица на годишната сума да се въведе размерът на сумата във валутата, в която издръжката е платена, така че за всяка година да се получи автоматично изчисляване на просрочените задължения във валутата, която е валидна за съответната година. След това в обобщителната таблица конвертирайте резултатите в новата валута в обращение към момента на попълване на формуляра, така че общият сбор да е в тази валута. В този случай се препоръчва да се предостави допълнителна информация в графата \"друга важна информация\". "]
["8."]
["8. Въведете календарната година, за която се отнася таблицата на годишната сума. Попълнете толкова таблици, колкото е необходимо, за да се обхване целият период, през който са натрупани просрочени плащания (т.е. за всяка календарна година), като се започне с първата година на неплащане и се завърши с последната."]
["за добавяне на повече таблици на годишни суми, моля използвайте MS Excel като:"]
[" Щракнете бутона (трябва да бъдат активирани макроси)  "]
["или "]
["1. Маркирайте таблицата на годишната сума и един допълнителен ред като използвате левия бутон на мишката с плъзгане надолу по номерата на редовете (т.е. от ред 21 до ред 39). Важно е да маркирате редовете, а не клетките, защото поради защитата на листа, могат да се копират и вмъкват само редове; 2. Чрез щракване на десния бутон на мишката изберете \"Копиране\";  3. Щракнете на следния ред (ред номер 40) от лявата страна, точно под маркираното поле; 4. Щракнете десния бутон на мишката и избете от списъка \"Вмъкни копираните клетки\". 5. Ще се появи допълнителна празна \"таблица на годишната сума\" с вече заложени в нея формули. Ако има нужда от повече таблици на годишната сума, повторете стъпки от 1 до 4."]
[]
["9."]
[]
[]
[]
[]
[]
[]
[]
[]
[]
[]
[]
[]
["10."]
["9. Таблицата автоматично изчислява \"сумите на просрочените задължения\", като използва данните, въведени в колоните (с изключение на сумите, платени в друга валута, които служат само за справка)."]
["Въведете сумите в клетките, както следва; оставете клетките празни, ако се налага. Не всички клетки/колони трябва да се използват във всички случаи. \n \"Определена месечна сума\": въведете за всеки месец сумата, посочена в решението, съдебната спогодба или автентичния документ.\n \"Суми, платени от длъжника\" : въведете действително платените от длъжника суми. Когато те не отговарят на месечната сума, определена за даден месец,  окончателното изчисляване ще покаже салдото. Не следва да вземате предвид салдото, получено в колона \"суми на просрочените задължения\" при месеци, в които е налице надплащане. Общият размер на просрочените задължения ще се появи в обобщителната таблица. \n\"Суми, платени в друга валута\" : въведете частичните или пълните плащания, направени от длъжника във валута, която е различна от посочената в решението, съдебната спогодба или автентичния документ. Посочете валутата, в която е направено плащането (напр. 1 000 CZK/HUF/PLN и др.), и конвертирайте сумата във валутата на таблицата, като въведете обменния курс в колона \"суми, платени в друга валута\", след което посочете резултата от конвертирането в колона \"суми, платени от длъжника\". \nОтразяването по месеци на плащанията, направени в друга валута, може да е от полза за някои ищци,\n за да обяснят цифрите в колона \"суми, платени от длъжника\"."]
["\"Суми, платени от други източници\" : въведете плащанията, направени от публични структури или органи, различни от длъжника. Тази колона позволява на ищеца или на органа да посочи всяко плащане, направено не от длъжника, а от друг орган, служба или агенция (обикновено обезщетения, предоставени вместо издръжка). Тези плащания могат да бъдат събрани чрез подаването на отделна молба. Не вземайте предвид тази колона, ако не е приложимо във Вашия случай. За всяко вписване посочете подробности за този \"друг източник\" в графа \"друга важна информация\" в края на таблицата. Не попълвайте тази колона, когато ищецът е публична структура, тъй като тогава няма друг източник (т.е. \"друг\" освен ищеца). Сумите в тази колона не се обхващат от молбата за събиране и се приспадат от колона \"определена месечна сума\"."]
["\"Суми на просрочените задължения\": тази колона показва салдото за всеки месец, което се изчислява автоматично чрез използване на цифрите в колони \"определена месечна сума\", \"суми, платени от длъжника\", \"суми, платени от други източници\". Ако плащанията не са редовни или еднакви, при някои месеци може да е налице надплащане, а при други непълно изплащане на задължението за издръжка. В обобщителната таблица обаче ще се появи действителното салдо, независимо от моментните надплащания или непълни плащания през периода, през който са натрупани просрочените задължения."]
[]
["10. Не въвеждайте нищо в последния ред \"общо\" на таблицата на годишната сума, тъй като сумата там се появява автоматично."]
[]
[]
[]
["11."]
[]
[]
[]
[]
[]
[]
[]
[]
[]
["11. В първата колона въведете всяка година, за която е попълнена таблица на годишната сума. В колоните, определени за сумите, въведете сумите, съдържащи се в редовете \"общо\" на таблиците на годишните суми. Тук не е включена колоната \"суми, платени в друга валута\", тъй като тя служи само за справка."]
["12."]
["12. Посочете всякаква допълнителна важна информация, която не може да се посочи в предходните клетки."]
["13."]
["13. Ако се изпълзва индексиране и е приложена таблица за индексирането, направете отметка в полето и въведете индексираните суми за всеки период на индексиране (както е определен в националното законодателство на държавата членка) в колона \"определена месечна сума\". В този случай определена месечна сума може да варира от период на период. В допълнителна таблича посочете метода за изчисляване на променената сума заедно с националното законодателство, на което се основава индексирането."]
["14."]
["15."]
[]
["16."]
[]
[]
[]
[]
["14. Въведете мястото и датата на полагане на подписа."]
["15. Ако таблицата се попълва от ищеца, тук трябва да се подпише той/тя."]
["16. Ако таблицата не се попълва от ищеца, въведете името и подписа на упълномощеното лице/оправомощения орган. В тези случаи трябва да се предостави надеждна информация (официално удостоверение или декларация от ищеца) относно източника на данните във формуляра."]

{"sheet":" ","index":3,"n_rows":19,"n_cols":6,"rows_kept":19,"cut":false,"hidden":false,"merged":[[1,0,1,5],[3,0,5,0],[3,1,5,1],[3,2,5,2],[3,3,5,3],[3,4,5,4],[3,5,5,5],[2,1,2,2],[2,3,2,4]]}
[]
["Таблица на годишната сума"]
["Година",null,null,"Валута на таблицата"]
["Месец","Определена месечна сума","Суми, платени от длъжника","Суми, платени в друга валута","Суми, платени от други източници","Суми на просрочените задължения"]
[]
[]
["Януари",null,null,null,null,{"$f":"B7-C7-E7","v":0}]
["Фебруари",null,null,null,null,0]
["Март",null,null,null,null,0]
["Април",null,null,null,null,0]
["Май",null,null,null,null,0]
["Юни",null,null,null,null,0]
["Юли",null,null,null,null,0]
["Август",null,null,null,null,0]
["Септември",null,null,null,null,0]
["Октомври",null,null,null,null,0]
["Ноември",null,null,null,null,0]
["Декември",null,null,null,null,0]
["ОБЩО",{"$f":"SUM(B7:B18)","v":0},{"$f":"SUM(C7:C18)","v":0},null,{"$f":"SUM(E7:E18)","v":0},0]